Cogmind - Beta 13 @@@ ROGUE MODE // 2024.07.24 @ 12:50:33 Player: jagoly Result: Destroyed by XX-73Y(R) with Subdweller Laser Performance ------------- Evolutions (0) 0 Regions Visited (2) 400 Robots Destroyed (36) 180 Value Destroyed (1062) 1062 Prototype IDs (2) 40 Alien Tech Used (0) 0 Bonus (0) 0 TOTAL SCORE: 1682 Bonus ------- None Cogmind --------- Core Integrity 0/250 Matter 245/300 Energy 100/100 System Corruption 0% Temperature Cool (6) Movement Rolling (120) Ox1 Location -10/Subcaves Parts ------- > --- POWER (1) -------- (None) > --- PROPULSION (2) --- Light Treads Subdweller Monowheel > --- UTILITY (2) ------ Heat Sink Large Storage Unit > --- WEAPON (2) ------- Autogun Autogun > --- INVENTORY (15) --- Ion Engine Improved Heat Sink Large Storage Unit Sensor Array Scrap Shield Hacking Suite Mini Grenade Launcher Makeshift Hammer Scrap Shield Fragment (49) Peak State ------------ > --- POWER ------------ Ion Engine > --- PROPULSION ------- Light Treads Subdweller Monowheel > --- UTILITY ---------- Heat Sink Large Storage Unit > --- WEAPON ----------- Autogun Autogun > --- INVENTORY -------- Ion Engine Improved Heat Sink Large Storage Unit Sensor Array Scrap Shield Hacking Suite Subdweller Beam Cannon Autogun Mini Grenade Launcher Makeshift Hammer Scrap Shield Fragment [Rating: 12] Favorites ----------- Power Ion Engine Engine Ion Engine Propulsion Aluminum Leg Treads Light Treads Leg Aluminum Leg Wheel Subdweller Monowheel Utility Heat Sink Device Heat Sink Storage Large Storage Unit Processor Signal Interpreter Weapon Autogun Energy Gun Medium Laser Energy Cannon Subdweller Beam Cannon Ballistic Gun Autogun Launcher Mini Grenade Launcher Build | -11 -10 -10 ------- Run | Yrd Mat Sub Slots Evolved . | . . . Power . | . . . Propulsion . | . . . Utility . | . . . Weapon . | . . . Parts Attached 42 | 6 21 15 Power 3 | 1 2 . Engine 3 | 1 2 . Core . | . . . Reactor . | . . . Propulsion 14 | 2 8 4 Treads 5 | . 2 3 Leg 8 | 2 6 . Wheel 1 | . . 1 Hover . | . . . Flight . | . . . Utility 9 | 1 5 3 Device 6 | . 4 2 Storage 2 | 1 1 . Processor 1 | . . 1 Hackware . | . . . Protection . | . . . Artifact . | . . . Weapon 16 | 2 6 8 Energy Gun 4 | 2 2 . Energy Cannon 2 | . . 2 Ballistic Gun 9 | . 4 5 Ballistic Cannon . | . . . Launcher 1 | . . 1 Special Weapon . | . . . Impact Weapon . | . . . Slashing Weapon . | . . . Piercing Weapon . | . . . Special Melee Weapon . | . . . Unidentified Prototypes . | . . . Parts Lost 8 | . 2 6 Power 2 | . 1 1 Propulsion 3 | . . 3 Utility . | . . . Weapon 3 | . 1 2 Highest Loss Streak 5 | . 1 5 To Critical Strikes . | . . . Average Slot Usage (%) 97 | . 98 95 Engine 12 | . 13 10 Treads 12 | . 4 23 Leg 14 | . 23 . Wheel 1 | . . 4 Device 13 | . 13 13 Storage 14 | . 14 14 Energy Gun 4 | . 7 . Energy Cannon 3 | . . 9 Ballistic Gun 19 | . 20 18 Naked Turns . | . . . Heaviest Build 42 | 11 32 42 Greatest Support 40 | 20 40 40 Greatest Overweight (x) 1 | . 1 1 Average Overweight (x) . | . . . Largest Inventory Capacity 15 | 8 15 15 Average Capacity 13 | 7 12 15 Most Carried 15 | 3 15 15 Average Carried 11 | 1 10 13 Final Capacity 15 | 8 15 15 Final Carried 15 | 3 15 10 Class Distribution -------------------- 82% | Mutant 17% | Scavenger-Mutant Dominant Class ---------------- Mutant | -10/Materials Mutant | -10/Subcaves Resources | -11 -10 -10 ----------- Run | Yrd Mat Sub Matter Collected 1197 | 212 756 229 Remotely . | . . . Salvage Created 1351 | . 1021 330 Parts 90 | . 68 22 Haulers Intercepted 2 | . 2 . Recyclers Shooed 2 | . 2 . Parts Field Recycled . | . . . Retrieved Matter . | . . . Parts Self-Destructed 7 | . . 7 Prevented . | . . . Kills | -11 -10 -10 ------- Run | Yrd Mat Sub Combat Hostiles Destroyed 27 | . 18 9 Guns 22 | . 18 4 Cannons 2 | . . 2 AOE 2 | . . 2 Classes Destroyed 7 | . 5 2 Worker 1 | . 1 . Hauler 2 | . 2 . Operator 3 | . 3 . Watcher 3 | . 3 . Swarmer 2 | . . 2 Grunt 18 | . 18 . Subdweller 7 | . . 7 Best Kill Streak 5 | . 5 3 Combat Bots Only 4 | . 4 3 Max Kills in Single Turn 2 | . 1 2 Gunslinging . | . . . Exploded 2 | . . 2 Melee . | . . . Uniques/NPCs Destroyed . | . . . Combat | -11 -10 -10 -------- Run | Yrd Mat Sub Hostile Shots Fired 149 | . 92 57 Missed 44 | . 31 13 Damage Taken 1632 | . 721 911 Core 252 | . 156 96 Absorbed by Shields . | . . . Core Remaining (%) 100 | 100 . . Volleys Fired 143 | . 108 35 Largest 2 | . 2 2 Hottest 103 | . 100 103 Shots Fired 274 | . 214 60 Gun 249 | . 214 35 Cannon 24 | . . 24 Launcher 1 | . . 1 Special . | . . . Kinetic 163 | . 128 35 Thermal 110 | . 86 24 Explosive 1 | . . 1 Electromagnetic . | . . . Robot Hit Streak 10 | . 10 9 Robot Miss Streak 4 | . 4 3 Penetration Max . | . . . Secondary Targets . | . . . Shots Hit Robots 166 | . 127 39 Core Hits 60 | . 47 13 Critical Kills 1 | . . 1 Critical Parts Destroyed . | . . . Critical Strikes 4 | . 3 1 Burn 3 | . 3 . Meltdown 1 | . . 1 Melee Attacks . | . . . Impact . | . . . Slashing . | . . . Piercing . | . . . Sneak Attacks . | . . . Combat Hostiles . | . . . Follow-up Attacks . | . . . Damage Inflicted 2702 | . 1854 848 Guns 2189 | . 1854 335 Cannons 441 | . . 441 Explosions 72 | . . 72 Melee . | . . . Ramming . | . . . Kinetic 1535 | . 1200 335 Thermal 1095 | . 654 441 Explosive 72 | . . 72 Electromagnetic . | . . . Impact . | . . . Slashing . | . . . Piercing . | . . . Highest Corruption . | . . . Average Corruption . | . . . Corruption Purged . | . . . Corruption Blocked . | . . . Overload Shots . | . . . Overflow Damage . | . . . Projectiles . | . . . Explosions . | . . . Melee . | . . . Knockbacks . | . . . Impact . | . . . Kinetic . | . . . Secondary . | . . . Self-Inflicted Damage . | . . . Shots . | . . . Rammed . | . . . Targets Rammed . | . . . Kicked . | . . . Crushed . | . . . Highest Temperature 261 | . 261 10 Average Temperature 34 | . 43 2 Received Heat Transfer 495 | . 423 72 Siege Activations . | . . . Robots Corrupted . | . . . Combat Hostiles . | . . . Parts Fried . | . . . Impact Corruptions . | . . . Robots Melted 1 | . . 1 Combat Hostiles 1 | . . 1 Parts Melted 2 | . 2 . Heat Transferred 2727 | . 2135 592 Parts Sabotaged . | . . . Parts Stolen . | . . . Parts Stripped . | . . . Power Chain Reactions . | . . . Alert | -11 -10 -10 ------- Run | Yrd Mat Sub Peak Influence 259 | . 259 . Initial . | . . . Average 81 | . 84 . Maximum Alert Level 1 | . 1 . Low Security (%) 95 | 100 95 . Level 1 4 | . 4 . Level 2 . | . . . Level 3 . | . . . Level 4 . | . . . Level 5 . | . . . High Security . | . . . Max Security . | . . . Squads Dispatched 6 | . 6 . Investigation 2 | . 2 . Extermination . | . . . Reinforcement 4 | . 4 . Assault . | . . . Garrison . | . . . Intercept . | . . . Searches Triggered . | . . . Construction Impeded . | . . . Haulers Reinforced . | . . . Active Scanning Responses . | . . . Cargo Convoy Interrupts . | . . . Stealth | -11 -10 -10 --------- Run | Yrd Mat Sub Distress Signals 3 | . 3 . Communications Jammed . | . . . Distress Signals . | . . . Times Spotted 44 | . 33 11 Peak Tracking Total 5 | . 5 3 Tactical Retreats 3 | . 3 . Traps | -11 -10 -10 ------- Run | Yrd Mat Sub Traps Triggered 3 | . 2 1 Indirectly . | . . . Trap Hack Attempts . | . . . Triggered . | . . . Disarmed . | . . . Reprogrammed . | . . . Reused . | . . . Traps Extracted . | . . . Installed . | . . . Triggered . | . . . Machines | -11 -10 -10 ---------- Run | Yrd Mat Sub Machines Disabled 1 | . 1 . Max in Single Turn 1 | . 1 . Machines Repaired . | . . . Machines Dismantled . | . . . Machines Sabotaged . | . . . Overloaded Fab Kills . | . . . Hacking | -11 -10 -10 --------- Run | Yrd Mat Sub Machines Accessed 6 | . 6 . Terminals 5 | . 5 . Fabricators . | . . . Repair Stations . | . . . Recycling Units 1 | . 1 . Scanalyzers . | . . . Garrison Access . | . . . Total Hacks 13 | . 13 . Successful 7 | . 7 . Failed 6 | . 6 . Catastrophic 2 | . 2 . Database Lockouts . | . . . Manual . | . . . Terminals 10 | . 10 . Fabricators . | . . . Repair Stations . | . . . Recycling Units 3 | . 3 . Scanalyzers . | . . . Garrison Access . | . . . Terminal Hacks 6 | . 6 . Prototype ID Bank 1 | . 1 . Terminal Index 1 | . 1 . Unreport Threat 1 | . 1 . Locate Traps 2 | . 2 . Hauler Manifests 1 | . 1 . Fabricator Hacks . | . . . Repair Station Hacks . | . . . Recycling Unit Hacks 1 | . 1 . Retrieve Components 1 | . 1 . Scanalyzer . | . . . Garrison Access Hacks . | . . . Unauthorized Hacks . | . . . Terminals . | . . . Fabricators . | . . . Repair Stations . | . . . Recycling Units . | . . . Scanalyzers . | . . . Garrison Access . | . . . Data Cores Recovered . | . . . Used . | . . . Hacking Detections 5 | . 5 . Full Trace Events . | . . . Feedback Events . | . . . Feedback Blocked . | . . . Robot Schematics Acquired . | . . . Robots Built . | . . . Authchips . | . . . Time . | . . . Total Robot Build Rating . | . . . Part Schematics Acquired . | . . . Parts Built . | . . . Authchips . | . . . Time . | . . . Total Part Build Rating . | . . . Parts Repaired . | . . . Time . | . . . Parts Recycled . | . . . Recycled Matter . | . . . Retrieved Matter . | . . . Retrieved Components 9 | . 9 . Parts Scanalyzed . | . . . Part Schematics Acquired . | . . . Parts Damaged . | . . . Bothacking | -11 -10 -10 ------------ Run | Yrd Mat Sub Used RIF Installer . | . . . Robots Hacked . | . . . Non-combat . | . . . Combat . | . . . Robot Hacks Applied . | . . . Relay Couplers Released . | . . . Fabnet Peak Effective % . | . . . Robots Rewired . | . . . Allies Hacked . | . . . Hacks Repelled . | . . . Allies | -11 -10 -10 -------- Run | Yrd Mat Sub Total Allies . | . . . Largest Group . | . . . Highest-Rated Group . | . . . Highest-Rated Ally . | . . . Total Orders . | . . . Ally Attacks . | . . . Total Damage . | . . . Kills . | . . . Allies Corrupted . | . . . Allies Melted . | . . . Intel | -11 -10 -10 ------- Run | Yrd Mat Sub Robot Analysis Total . | . . . Derelict Logs Recovered 1 | . . 1 Drone Launches . | . . . Drone Recoveries . | . . . Exploration | -11 -10 -10 ------------- Run | Yrd Mat Sub Turns Passed 2654 | 60 1581 1013 Spaces Moved 1302 | 43 747 512 Core 4 | 4 . . Treads 608 | . 140 468 Legs 646 | 39 607 . Wheels 44 | . . 44 Hover . | . . . Flight . | . . . Fastest Speed 50 | 50 120 120 Average Speed 164 | 113 159 174 Slowest Speed 240 | 120 240 240 Overloaded Moves . | . . . Propulsion Burnouts . | . . . Robots Hopped . | . . . Cave-ins Triggered . | . . . Exploration Rate (%) 47 | 3 93 46 Regions Visited 2 Branch Regions 1 Pre-discovered Areas . | . . . Known Exits Taken . | . . . Unknown Exits Taken 2 | 1 1 . Scrap Searched 13 | . . 13 Spaces Dug . | . . . Terrain Destroyed 8 | . . 8 Melee . | . . . Projectile 1 | . . 1 AOE 7 | . . 7 Terrain Rammed . | . . . Walls Destroyed . | . . . Machines Disabled . | . . . Actions | -11 -10 -10 --------- Run | Yrd Mat Sub Total 1573 | 51 945 577 Wait 44 | . 44 . Move 1300 | 42 746 512 Hop . | . . . Pick Up 17 | 3 10 4 Fast Attach 16 | 6 7 3 Attach 7 | . 1 6 Detach 7 | . 3 4 Swap 19 | . 13 6 Drop 20 | . 13 7 Fire 143 | . 108 35 Melee . | . . . Ram . | . . . Kick . | . . . Crush . | . . . Escape Stasis . | . . . Rewire . | . . . Trap . | . . . Miscellaneous . | . . . Route ------- -11/Scrapyard -10/Materials (discovered 5 exits: [*Mat x3] / [*Min] / [*Sub]) -10/Subcaves (discovered 3 exits: *Mat x2 / Rec) History --------- Turn | Location | Event 5 | -11/Scrapyard | Discovered new exit (range 15) 61 | -11/Scrapyard | Entered Materials 306 | -10/Materials | Build established: Mutant 494 | -10/Materials | Discovered new exit (range 9) 764 | -10/Materials | Core integrity fell below 50% 985 | -10/Materials | Discovered new exit (range 8) 1199 | -10/Materials | Build established: Scavenger-Mutant 1524 | -10/Materials | Discovered new exit (range 4) 1620 | -10/Materials | Discovered new exit (range 15) 1630 | -10/Materials | Discovered new exit (range 8) 1642 | -10/Materials | Entered Subcaves 1655 | -10/Subcaves | Identified exit to Recycling 1660 | -10/Subcaves | Build established: Mutant 1747 | -10/Subcaves | Disturbed a concealed Subdweller 1805 | -10/Subcaves | Discovered new exit (range 14) 1919 | -10/Subcaves | A swath of the cavern ceiling suddenly collapsed 2221 | -10/Subcaves | Discovered new exit (range 5) 2224 | -10/Subcaves | Shifting Twisted Machinery released Piercing Trap 2230 | -10/Subcaves | Shifting Twisted Machinery released Sub. Beam Cannon 2243 | -10/Subcaves | Identified exit to Materials 2285 | -10/Subcaves | Disturbed a concealed Subdweller 2288 | -10/Subcaves | Disturbed a concealed Subdweller 2335 | -10/Subcaves | Core integrity fell below 20% 2384 | -10/Subcaves | Lost 5 parts (3n2w) 2645 | -10/Subcaves | A Subdweller sparked back to life 2645 | -10/Subcaves | A Subdweller sparked back to life 2645 | -10/Subcaves | A Subdweller sparked back to life 2655 | -10/Subcaves | Destroyed by XX-73Y(R) with Subdweller Laser Last Messages --------------- 02374_ Searching scrap... 02374_ Found Sub. Machine Gun. 02374_ Found 29 Matter. 02375_ Searching scrap... 02375_ Found Sub. Machine Gun. 02375_ Found 25 Matter. 02386_ Dropped Broken Sub. Beam Cannon. 02406_ Ion Engine destroyed. 02408_ S-10 Pest destroyed. 02419_ Lgt. Assault Rifle fries itself beyond repair. 02419_ Lgt. Ion Engine fries itself beyond repair. 02422_ Flight Unit fries itself beyond repair. 02438_ Acquired 26 matter. 02450_ Acquired 8 matter. 02460_ The unstable cave ceiling collapses. 02645_ XX-73Y(R) creaks and sparks as it begins to move. 02645_ Q2-VD8(R) creaks and sparks as it begins to move. 02645_ BW-SCT(R) creaks and sparks as it begins to move. 02652_ XX-73Y(R) affixes Scrap Shield Fragment to Scrap Shield. 02654_ Q2-VD8(R) destroyed. Map ----- +----------------------------------------------------+ | | | | | | | | | | | | | ?????????????????????????????????????????????????? | | ?????????????????????????????????????????????????? | | ?????????????????????????????????????????????????? | | ?????????????????????????????????????????????????? | | ?????????????????????????????????????????????????? | | ?????????????????????????????????????????????????? | | ?????????????????????????????????????????????????? | | ?????????????????????????????????????????????????? | | ?????????????????????????????????????????????????? | | ?????????????????????????????????????????????????? | | ?????????????????????????????????????????????????? | | ?????????????????????????????????????????????????? | | ?????????????????????????????????????????????????? | | ?????????????????????????????????????????????????? | | ?????????????????????????????????????????????????? | | ???????????????????####??????????????????????????? | | ??????????????????## #??????????????????????????? | | ?????????????????## ##<####?????????????????????? | | ?????????????????# # R[ # #?????????????????????? | | ?????????????????# < !&R @ #?????????????????????? | | ????????????????## &%=* #?????????????????????? | | ???????????????## < <<=# #????????????????????? | | ??????????????## < #????????????????????? | | ?????????????## ###### ##????????????????????? | | ?????????????# ###???? ###???????????????????? | | ?????????????# ##???## ??????????????????? | | ?????????????# ##?? ??????????????????? | | ????????????## #? ?????????????????? | | ????####????# ## ?????????????????? | | ???## #????## #??????????????????? | | ???# #?#### ## #??????????????????? | | ???# #?# #? #??????????????????? | | ???# #?# #? ???????????????????? | | ???# ### ###? ???????????????????? | | ???# ##?????????????????????????? | | ???# ##??????????????????????????? | | ???# ## #???????????????????????????? | | ???# #### #???????????????????????????? | | ???# ##?? #???????????????????????????? | | ???# ##?? ####???????????????????????????? | | ???# #?? #??????????????????????????????? | | ???## #?? ??????????????????????????????? | | ???## #??# ??????????????????????????????? | | ???# #???# #?????????????????????????????? | +----------------------------------------------------+ Best States ------------- Heat Dissipation 39 Energy Generation 10 Energy Capacity 250 Matter Stores 300 Matter Capacity 300 Sight Range 16 Terrain Scan Density 10 Evasion (%) 55 Recoil Reduction 2 Item Schematics ----------------- None Robot Schematics ------------------ None Fabricated ------------ Nothing Alien Tech Used ----------------- None Achievements -------------- None Challenges ------------ None Game ------ Seed ForceSigixWheel Manual? 0 Play Time 00:26:00 Cumulative 142.1 hours Start 2024.07.24 @ 12:26:24 End 2024.07.24 @ 12:50:33 Sessions 1 Manual Loads 0 Difficulty Rogue Special Mode None Game No. 44 Rogue 44 Adventurer 0 Explorer 0 Win Type - Total 1 Types 1/0/0/0/0/0/0/0/0 Lore% 55 Gallery% 62 Achievement% 46 Wizard Run 0 Options --------- Layout 0 ASCII 0 Keyboard 1 Movement Numpad Keybinds 0 Fullscreen 1 Font 18/X11Bold Map View 76x50 Zoom Use 0% Tactical HUD 1 Map Filters NONE Filters NONE Steam 1 RUN: 5c57dcd2-11b9-4866-86ab-b5d7a0d93e23